Workbook

Sheet IR PNatural (hidden)
B5: Sal Base | C5: IR | E5: de | F5: a | G5: imp base | H5: porsentaje | I5: exceso
B6: 55000 | C6: =IF(AND((B6*12)>=$E$7,(B6*12)<=$F$7),(((((B6*12)-$I$7)*$H$7)+$G$7)/12),IF(AND((B6*12)>=$E$8,(B6*12)<=$F$8),(((((B6*12)-$I$8)*$H$8)+$G$8)/12),IF(AND((B6*12)>=$E$9,(B6*12)<=$F$9),(((((B6*12)-$I$9)*$H$9)+$G$9)/12),IF(AND((B6*12)>=$E$10,(B6*12)<=$F$10),(((((B6*12)-$I$10)*$H$10)+$G$10)/12),IF((B6*12)>=$E$11,(((((B6*12)-$I$11)*$H$11)+$G$11)/12),"0"))))) -> 11500 | E6: 1 | F6: 50000 | G6: 0 | H6: 0 | I6: 0
C7: =IF(AND((B7*12)>=$E$7,(B7*12)<=$F$7),(((((B7*12)-$I$7)*$H$7)+$G$7)/12),IF(AND((B7*12)>=$E$8,(B7*12)<=$F$8),(((((B7*12)-$I$8)*$H$8)+$G$8)/12),IF(AND((B7*12)>=$E$9,(B7*12)<=$F$9),(((((B7*12)-$I$9)*$H$9)+$G$9)/12),IF(AND((B7*12)>=$E$10,(B7*12)<=$F$10),(((((B7*12)-$I$10)*$H$10)+$G$10)/12),IF((B7*12)>=$E$11,(((((B7*12)-$I$11)*$H$11)+$G$11)/12),"0"))))) -> 0 | E7: 50000.01 | F7: 100000 | G7: 0 | H7: 0.1 | I7: 50000
C8: 0 | E8: 100000.01 | F8: 200000 | G8: 5000 | H8: 0.15 | I8: 100000
C9: 0 | E9: 200000.01 | F9: 300000 | G9: 20000 | H9: 0.2 | I9: 200000
C10: 0 | E10: 300000.01 | F10: 500000 | G10: 40000 | H10: 0.25 | I10: 300000
C11: 0 | E11: 500000.01 | F11: a más | G11: 90000 | H11: 0.3 | I11: 500000
C12: 0
C13: 0
C14: 0
C15: 0
C16: 0
C17: 0
C18: 0
C19: 0
C20: 0

Sheet IR PAsalariada
B4: CALCULO DE IR | G4: TABLA DEL IR PERSONAS ASALARIADAS
B5: Salario | C5: INSS | D5: S. Base | E5: IR | G5: de | H5: a | I5: imp base | J5: porsentaje | K5: exceso
B6: 10000 | C6: =+B6*0.07 -> 700 | D6: =+B6-C6 -> 9300 | E6: =IF(AND((D6*12)>=$G$7,(D6*12)<=$H$7),(((((D6*12)-$K$7)*$J$7)+$I$7)/12),IF(AND((D6*12)>=$G$8,(D6*12)<=$H$8),(((((D6*12)-$K$8)*$J$8)+$I$8)/12),IF(AND((D6*12)>=$G$9,(D6*12)<=$H$9),(((((D6*12)-$K$9)*$J$9)+$I$9)/12),IF((D6*12)>=$G$10,(((((D6*12)-$K$10)*$J$10)+$I$10)/12),"0")))) -> 145 | G6: 1 | H6: 100000 | I6: 0 | J6: 0 | K6: 0
B7: 15000 | C7: =+B7*0.07 -> 1050 | D7: =+B7-C7 -> 13950 | E7: =IF(AND((D7*12)>=$G$7,(D7*12)<=$H$7),(((((D7*12)-$K$7)*$J$7)+$I$7)/12),IF(AND((D7*12)>=$G$8,(D7*12)<=$H$8),(((((D7*12)-$K$8)*$J$8)+$I$8)/12),IF(AND((D7*12)>=$G$9,(D7*12)<=$H$9),(((((D7*12)-$K$9)*$J$9)+$I$9)/12),IF((D7*12)>=$G$10,(((((D7*12)-$K$10)*$J$10)+$I$10)/12),"0")))) -> 842.5 | G7: 100000.01 | H7: 200000 | I7: 0 | J7: 0.15 | K7: 100000
B8: 20000 | C8: 1400 | D8: 18600 | E8: =IF(AND((D8*12)>=$G$7,(D8*12)<=$H$7),(((((D8*12)-$K$7)*$J$7)+$I$7)/12),IF(AND((D8*12)>=$G$8,(D8*12)<=$H$8),(((((D8*12)-$K$8)*$J$8)+$I$8)/12),IF(AND((D8*12)>=$G$9,(D8*12)<=$H$9),(((((D8*12)-$K$9)*$J$9)+$I$9)/12),IF((D8*12)>=$G$10,(((((D8*12)-$K$10)*$J$10)+$I$10)/12),"0")))) -> 1636.666667 | G8: 200000.01 | H8: 350000 | I8: 15000 | J8: 0.2 | K8: 200000
B9: 25000 | C9: 1750 | D9: 23250 | E9: 2566.666667 | G9: 350000.01 | H9: 500000 | I9: 45000 | J9: 0.25 | K9: 350000
B10: 30000 | C10: 2100 | D10: 27900 | E10: 3496.666667 | G10: 500000.01 | H10: a más | I10: 82500 | J10: 0.3 | K10: 500000
B11: 35000 | C11: 2450 | D11: 32550 | E11: 4595.833333
B12: 40000 | C12: 2800 | D12: 37200 | E12: 5758.333333
B13: 45000 | C13: 3150 | D13: 41850 | E13: 6930
B14: 50000 | C14: 3500 | D14: 46500 | E14: 8325
B15: 55000 | C15: 3850 | D15: 51150 | E15: 9720
B16: 60000 | C16: 4200 | D16: 55800 | E16: 11115
B17: 65000 | C17: 4550 | D17: 60450 | E17: 12510
B18: 70000 | C18: 4900 | D18: 65100 | E18: 13905
B19: 75000 | C19: 5250 | D19: 69750 | E19: 15300
B20: 80000 | C20: 5600 | D20: 74400 | E20: 16695

Sheet IR SV
C3: IR para personas asalariadas (con salario variable)
A5: Mes | B5: S. Bruto | C5: INSS | D5: Salario N. | E5: Acumulado | F5: Mes | G5: Prom. M. | H5: Exp. Anual | I5: IR | J5: Ret. Acum | K5: Saldo x Ret. | L5: Mes x Ret. | M5: Ret. Mes
A6: ENE | B6: 9000 | C6: =B6*7% -> 630 | D6: =B6-C6 -> 8370 | E6: =D6 -> 8370 | F6: 1 | G6: =E6/F6 -> 8370 | H6: =G6*12 -> 100440 | I6: =IF(AND(H6>$B$24,H6<$C$24),(((H6-$F$24)*$E$24)+$D$24),IF(AND(H6>$B$25,H6<$C$25),(((H6-$F$25)*$E$25)+$D$25),IF(AND(H6>$B$26,H6<$C$26),(((H6-$F$26)*$E$26)+$D$26),IF(AND(H6>$B$27,H6<$C$27),(((H6-$F$27)*$E$27)+$D$27),"0")))) -> 66 | J6: 0 | K6: =I6-J6 -> 66 | L6: 12 | M6: =K6/L6 -> 5.5
A7: FEB | B7: 16000 | C7: =B7*7% -> 1120 | D7: 14880 | E7: =E6+D7 -> 23250 | F7: 2 | G7: 11625 | H7: =G7*12 -> 139500 | I7: 5925 | J7: =J6+M6 -> 5.5 | K7: =I7-J7 -> 5919.5 | L7: 11 | M7: =K7/L7 -> 538.1363636
A8: MAR | B8: 16500 | C8: 1155 | D8: 15345 | E8: 38595 | F8: 3 | G8: 12865 | H8: 154380 | I8: 8157 | J8: =J7+M7 -> 543.6363636 | K8: =I8-J8 -> 7613.363636 | L8: 10 | M8: 761.3363636
A9: ABR | B9: 17000 | C9: 1190 | D9: 15810 | E9: 54405 | F9: 4 | G9: 13601.25 | H9: 163215 | I9: 9482.25 | J9: 1304.972727 | K9: 8177.277273 | L9: 9 | M9: 908.5863636
A10: MAY | B10: 17500 | C10: 1225 | D10: 16275 | E10: 70680 | F10: 5 | G10: 14136 | H10: 169632 | I10: 10444.8 | J10: 2213.559091 | K10: 8231.240909 | L10: 8 | M10: 1028.905114
A11: JUN | B11: 18000 | C11: 1260 | D11: 16740 | E11: 87420 | F11: 6 | G11: 14570 | H11: 174840 | I11: 11226 | J11: 3242.464205 | K11: 7983.535795 | L11: 7 | M11: 1140.505114
A12: JUL | B12: 18500 | C12: 1295 | D12: 17205 | E12: 104625 | F12: 7 | G12: 14946.42857 | H12: 179357.1429 | I12: =IF(AND(H12>$B$24,H12<$C$24),(((H12-$F$24)*$E$24)+$D$24),IF(AND(H12>$B$25,H12<$C$25),(((H12-$F$25)*$E$25)+$D$25),IF(AND(H12>$B$26,H12<$C$26),(((H12-$F$26)*$E$26)+$D$26),IF(AND(H12>$B$27,H12<$C$27),(((H12-$F$27)*$E$27)+$D$27),"0")))) -> 11903.57143 | J12: 4382.969318 | K12: 7520.60211 | L12: 6 | M12: 1253.433685
A13: AGO | B13: 19000 | C13: 1330 | D13: 17670 | E13: 122295 | F13: 8 | G13: 15286.875 | H13: 183442.5 | I13: 12516.375 | J13: 5636.403003 | K13: 6879.971997 | L13: 5 | M13: 1375.994399
A14: SEP | B14: 19500 | C14: 1365 | D14: 18135 | E14: 140430 | F14: 9 | G14: 15603.33333 | H14: 187240 | I14: 13086 | J14: 7012.397403 | K14: 6073.602597 | L14: 4 | M14: 1518.400649
A15: OCT | B15: 20000 | C15: 1400 | D15: 18600 | E15: 159030 | F15: 10 | G15: 15903 | H15: 190836 | I15: 13625.4 | J15: 8530.798052 | K15: 5094.601948 | L15: 3 | M15: 1698.200649
A16: NOV | B16: 20500 | C16: 1435 | D16: 19065 | E16: 178095 | F16: 11 | G16: 16190.45455 | H16: 194285.4545 | I16: 14142.81818 | J16: 10228.9987 | K16: 3913.819481 | L16: 2 | M16: 1956.90974
A17: DIC | B17: 21000 | C17: 1470 | D17: 19530 | E17: 197625 | F17: 12 | G17: 16468.75 | H17: 197625 | I17: 14643.75 | J17: 12185.90844 | K17: 2457.841558 | L17: 1 | M17: 2457.841558
A18: TOTAL | B18: =SUM(B6:B17) -> 212500 | C18: =SUM(C6:C17) -> 14875 | D18: =SUM(D6:D17) -> 197625 | M18: =SUM(M6:M17) -> 14643.75
B20: Renta Gravable (Estratos) | D20: Impuesto Base | E20: Porsentaje aplicable | F20: Sobre Exceso de
B22: De C$ | C22: Hasta C$
B23: 1 | C23: 100000 | D23: 0 | E23: 0 | F23: 0
B24: 100000.01 | C24: 200000 | D24: 0 | E24: 0.15 | F24: 100000
B25: 200000.01 | C25: 350000 | D25: 15000 | E25: 0.2 | F25: 200000
B26: 350000.01 | C26: 500000 | D26: 45000 | E26: 0.25 | F26: 350000
B27: 500000.01 | C27: a más | D27: 82500 | E27: 0.3 | F27: 500000

Sheet Hoja3 (hidden)
B1: 3. Para las personas asalariadas en particular, el impuesto a pagar se calculará de conformidad con la tarifa progresiva sig:
B4: Renta Gravable (Estratos) | D4: Impuesto Base | E4: Porsentaje aplicable | F4: Sobre Exceso de
B6: De C$ | C6: Hasta C$
B7: 1 | C7: 75000 | D7: 0 | E7: 0 | F7: 0
B8: 75000.01 | C8: 100000 | D8: 0 | E8: 0.1 | F8: 75000
B9: 100000.01 | C9: 200000 | D9: 2500 | E9: 0.15 | F9: 100000
B10: 200000.01 | C10: 300000 | D10: 17500 | E10: 0.2 | F10: 200000
B11: 300000.01 | C11: 500000 | D11: 37500 | E11: 0.25 | F11: 300000
B12: 500000.01 | C12: a más | D12: 87500 | E12: 0.3 | F12: 500000

Sheet Nuevo
B1: Seleccionar todas las cantidades (salarios) y precionar el botón de Calcular IR
B2: INSS | C2: BASE | D2: IR
A3: 10000 | B3: 700 | C3: 9300 | D3: 145
A4: 15000 | B4: 1050 | C4: 13950 | D4: 842.5
A5: 20000 | B5: 1400 | C5: 18600 | D5: 1636.666667
A7: Seleccionar
A8: 25000
A9: 30000
A10: 35000
A11: 40000
A12: 45000
A13: 50000
